fUSD/lending_fUSD_20250206
["ID","MTS","AMOUNT","RATE_DAILY","PERIOD"]
[352017902,1738883438057,-500.0,0.00016999,2]
[352017903,1738883438066,-500.0,0.00016999,2]
[352017904,1738883438075,-377.09,0.00016999,2]
[352017905,1738883438084,-500.0,0.00016999,2]
[352017906,1738883438094,-622.44,0.00016999,2]
[352017907,1738883438103,-544.71,0.00016999,2]
[352017908,1738883438112,-500.0,0.00016999,2]
[352017909,1738883438122,-500.0,0.00016999,2]
[352017910,1738883438131,-500.0,0.00016999,2]
[352017911,1738883438140,-500.0,0.00016999,2]
[352017912,1738883438150,-500.0,0.00016999,2]
[352017913,1738883438160,-500.0,0.00016999,2]
[352017914,1738883438169,-500.0,0.00016999,2]
[352017915,1738883438179,-584.66,0.00016999,2]
[352017916,1738883438189,-500.0,0.00016999,2]
[352017917,1738883438198,-500.0,0.00016999,2]
[352017918,1738883438208,-500.0,0.00016999,2]
[352017919,1738883438218,-544.02,0.00016999,2]
[352017920,1738883438228,-500.0,0.00016999,2]
[352017921,1738883438238,-500.0,0.00016999,2]
[352017922,1738883438247,-500.0,0.00016999,2]
[352017924,1738883438256,-500.0,0.00016999,2]
[352017926,1738883438266,-500.0,0.00016999,2]
[352017928,1738883438277,-500.0,0.00016999,2]
[352017930,1738883438286,-500.0,0.00016999,2]
[352017932,1738883438296,-500.0,0.00016999,2]
[352017934,1738883438305,-500.0,0.00016999,2]
[352017937,1738883438315,-500.0,0.00016999,2]
[352017938,1738883438324,-500.0,0.00016999,2]
[352017940,1738883438333,-500.0,0.00016999,2]
[352017943,1738883438343,-500.0,0.00016999,2]
[352017945,1738883438352,-500.0,0.00016999,2]
[352017946,1738883438361,-500.0,0.00016999,2]
[352017948,1738883438370,-500.0,0.00016999,2]
[352017950,1738883438379,-500.0,0.00016999,2]
[352017952,1738883438388,-500.0,0.00016999,2]
[352017954,1738883438397,-500.0,0.00016999,2]
[352017956,1738883438406,-500.0,0.00016999,2]
[352017958,1738883438415,-500.0,0.00016999,2]
[352017960,1738883438424,-500.0,0.00016999,2]
[352017962,1738883438433,-500.0,0.00016999,2]
[352017964,1738883438442,-500.0,0.00016999,2]
[352017966,1738883438451,-254.28,0.00016999,2]
[352017968,1738883438461,-500.0,0.00016999,2]
[352017970,1738883438470,-500.0,0.00016999,2]
[352017972,1738883438479,-500.0,0.00016999,2]
[352017974,1738883438489,-500.0,0.00016999,2]
[352017976,1738883438499,-500.0,0.00016999,2]
[352017978,1738883438509,-500.0,0.00016999,2]
[352017980,1738883438518,-500.0,0.00016999,2]
[352017982,1738883438528,-500.0,0.00016999,2]
[352017984,1738883438538,-577.79,0.00016999,2]
[352017986,1738883438547,-623.8,0.00016999,2]
[352017988,1738883438557,-559.74,0.00016999,2]
[352017990,1738883438567,-500.0,0.00016999,2]
[352017992,1738883438576,-500.0,0.00016999,2]
[352017994,1738883438587,-500.0,0.00016999,2]
[352017996,1738883438596,-500.0,0.00016999,2]
[352017998,1738883438606,-248.79,0.00016999,2]
[352018000,1738883438615,-500.0,0.00016999,2]
[352018002,1738883438624,-500.0,0.00016999,2]
[352018004,1738883438633,-500.0,0.00016999,2]
[352018006,1738883438643,-471.08554198,0.00016999,2]
[352018008,1738883438652,-500.0,0.00016999,2]
[352018010,1738883438661,-500.0,0.00016999,2]
[352018012,1738883438670,-500.0,0.00016999,2]
[352018014,1738883438679,-297.92,0.00016999,2]
[352018016,1738883438689,-500.0,0.00016999,2]
[352018018,1738883438698,-500.0,0.00016999,2]
[352018020,1738883438708,-500.0,0.00016999,2]
[352018022,1738883438718,-500.0,0.00016999,2]
[352018024,1738883438727,-500.0,0.00016999,2]
[352018026,1738883438736,-500.0,0.00016999,2]
[352018028,1738883438746,-500.0,0.00016999,2]
[352018030,1738883438756,-500.0,0.00016999,2]
[352018032,1738883438766,-500.0,0.00016999,2]
[352018034,1738883438775,-500.0,0.00016999,2]
[352018036,1738883438784,-500.0,0.00016999,2]
[352018038,1738883438794,-509.95,0.00016999,2]
[352018040,1738883438803,-500.0,0.00016999,2]
[352018042,1738883438812,-497.96,0.00016999,2]
[352018044,1738883438821,-348.040287,0.00016999,2]
[352018046,1738883438831,-500.0,0.00016999,2]
[352018048,1738883438839,-500.0,0.00016999,2]
[352018050,1738883438848,-500.0,0.00016999,2]
[352018053,1738883438860,-500.0,0.00016999,2]
[352018055,1738883438869,-605.92,0.00016999,2]
[352018057,1738883438879,-495.16184736,0.00016999,2]
[352018059,1738883438888,-500.0,0.00016999,2]
[352018061,1738883438898,-223.66991468,0.00016999,2]
[352018062,1738883438908,-500.0,0.00016999,2]
[352018064,1738883438917,-500.0,0.00016999,2]
[352018067,1738883438926,-313.115877,0.00016999,2]
[352018069,1738883438937,-521.85,0.00016999,2]
[352018071,1738883438945,-646.29,0.00016999,2]
[352018073,1738883438955,-500.0,0.00016999,2]
[352018075,1738883438963,-362.35,0.00016999,2]
[352018077,1738883438973,-500.0,0.00016999,2]
[352018078,1738883438983,-506.18664595,0.00016999,2]
[352018080,1738883438991,-161.660854,0.00016999,2]
[352018082,1738883439001,-500.0,0.00016999,2]
[352018084,1738883439010,-500.0,0.00016999,2]
[352018086,1738883439019,-500.0,0.00016999,2]
[352018088,1738883439029,-500.0,0.00016999,2]
[352018090,1738883439038,-500.0,0.00016999,2]
[352018093,1738883439049,-500.0,0.00016999,2]
[352018095,1738883439058,-500.0,0.00016999,2]
[352018097,1738883439067,-500.0,0.00016999,2]
[352018099,1738883439077,-500.0,0.00016999,2]
[352018101,1738883439086,-428.42,0.00016999,2]
[352018103,1738883439095,-500.0,0.00016999,2]
[352018105,1738883439104,-165.24,0.00016999,2]
[352018107,1738883439113,-500.0,0.00016999,2]
[352018109,1738883439122,-500.0,0.00016999,2]
[352018111,1738883439131,-517.74,0.00016999,2]
[352018113,1738883439140,-500.0,0.00016999,2]
[352018115,1738883439150,-500.0,0.00016999,2]
[352018117,1738883439159,-389.67,0.00016999,2]
[352018119,1738883439168,-500.0,0.00016999,2]
[352018121,1738883439179,-500.0,0.00016999,2]
[352018123,1738883439188,-500.0,0.00016999,2]
[352018125,1738883439197,-236.7,0.00016999,2]
[352018127,1738883439207,-500.0,0.00016999,2]
[352018129,1738883439215,-97.10620111,0.00016999,2]
[352018208,1738883440101,-1108.0,0.0001675,2]
[352018210,1738883440110,-402.89379889,0.00016999,2]
[352018212,1738883440120,-96.1087911,0.00016999,2]
[352018217,1738883440167,-525.4112089,0.00016999,2]
[352018219,1738883440176,-500.0,0.00016999,2]
[352018221,1738883440186,-545.46,0.00016999,2]
[352018223,1738883440195,-376.22387995,0.00016999,2]
[352018533,1738883443174,-201.96,0.00016998,2]
[352018535,1738883443184,-303.04605506,0.00016998,2]
[352018537,1738883443195,-196.95394494,0.00016998,2]
[352018539,1738883443205,-123.77612005,0.00016999,2]
[352018541,1738883443214,-164.64786747,0.00016999,2]
[352018544,1738883443226,-335.35213253,0.00016999,2]
[352018546,1738883443236,-500.0,0.00016999,2]
[352018547,1738883443245,-500.0,0.00016999,2]
[352018550,1738883443255,-374.16,0.00016999,2]
[352018552,1738883443265,-500.0,0.00016999,2]
[352018554,1738883443275,-500.0,0.00016999,2]
[352018556,1738883443285,-500.0,0.00016999,2]
[352018558,1738883443294,-500.0,0.00016999,2]
[352018560,1738883443303,-638.53,0.00016999,2]
[352018562,1738883443313,-500.0,0.00016999,2]
[352018564,1738883443321,-500.0,0.00016999,2]
[352018566,1738883443329,-500.0,0.00016999,2]
[352018568,1738883443338,-500.0,0.00016999,2]
[352018569,1738883443347,-500.0,0.00016999,2]
[352018571,1738883443356,-500.0,0.00016999,2]
[352018573,1738883443366,-500.0,0.00016999,2]
[352018575,1738883443375,-500.0,0.00016999,2]
[352018577,1738883443384,-500.0,0.00016999,2]
[352018579,1738883443393,-500.0,0.00016999,2]
[352018581,1738883443403,-500.0,0.00016999,2]
[352018583,1738883443412,-599.08,0.00016999,2]
[352018586,1738883443422,-581.82,0.00016999,2]
[352018587,1738883443431,-500.0,0.00016999,2]
[352018589,1738883443440,-500.0,0.00016999,2]
[352018591,1738883443450,-172.52368395,0.00016999,2]
[352018594,1738883443463,-327.47631605,0.00016999,2]
[352018596,1738883443472,-500.0,0.00016999,2]
[352018598,1738883443481,-500.0,0.00016999,2]
[352018600,1738883443491,-500.0,0.00016999,2]
[352018602,1738883443501,-500.0,0.00016999,2]
[352018604,1738883443511,-500.0,0.00016999,2]
[352018606,1738883443520,-500.0,0.00016999,2]
[352018608,1738883443529,-500.0,0.00016999,2]
[352018610,1738883443538,-500.0,0.00016999,2]
[352018629,1738883443547,-500.0,0.00016999,2]
[352018631,1738883443717,-500.0,0.00016999,2]
[352018633,1738883443728,-500.0,0.00016999,2]
[352018635,1738883443737,-632.16,0.00016999,2]
[352018637,1738883443746,-500.0,0.00016999,2]
[352018639,1738883443756,-500.0,0.00016999,2]
[352018641,1738883443765,-500.0,0.00016999,2]
[352018643,1738883443774,-500.0,0.00016999,2]
[352018645,1738883443784,-500.0,0.00016999,2]
[352018647,1738883443794,-500.0,0.00016999,2]
[352018649,1738883443803,-500.0,0.00016999,2]
[352018651,1738883443813,-500.0,0.00016999,2]
[352018653,1738883443822,-500.0,0.00016999,2]
[352018655,1738883443831,-500.0,0.00016999,2]
[352018657,1738883443842,-500.0,0.00016999,2]
[352018659,1738883443851,-500.0,0.00016999,2]
[352018661,1738883443865,-500.0,0.00016999,2]
[352018663,1738883443874,-500.0,0.00016999,2]
[352018666,1738883443884,-500.0,0.00016999,2]
[352018668,1738883443893,-500.0,0.00016999,2]
[352018670,1738883443904,-500.0,0.00016999,2]
[352018672,1738883443914,-500.0,0.00016999,2]
[352018674,1738883443923,-500.0,0.00016999,2]
[352018676,1738883443934,-500.0,0.00016999,2]
[352018678,1738883443945,-500.0,0.00016999,2]
[352018680,1738883443955,-500.0,0.00016999,2]
[352018682,1738883443964,-500.0,0.00016999,2]
[352018684,1738883443974,-500.0,0.00016999,2]
[352018686,1738883443984,-500.0,0.00016999,2]
[352018688,1738883443993,-353.96,0.00016999,2]
[352018690,1738883444003,-500.0,0.00016999,2]
[352018692,1738883444012,-500.0,0.00016999,2]
[352018694,1738883444022,-500.0,0.00016999,2]
[352018696,1738883444032,-500.0,0.00016999,2]
[352018698,1738883444041,-453.98,0.00016999,2]
[352018700,1738883444051,-506.06,0.00016999,2]
[352018702,1738883444061,-568.82,0.00016999,2]
[352018704,1738883444069,-500.0,0.00016999,2]
[352018706,1738883444078,-500.0,0.00016999,2]
[352018708,1738883444088,-590.2,0.00016999,2]
[352018710,1738883444097,-500.0,0.00016999,2]
[352018712,1738883444106,-694.29,0.00016999,2]
[352018714,1738883444116,-500.0,0.00016999,2]
[352018716,1738883444125,-198.53,0.00016999,2]
[352018718,1738883444134,-500.0,0.00016999,2]
[352018720,1738883444143,-500.0,0.00016999,2]
[352018722,1738883444153,-500.0,0.00016999,2]
[352018724,1738883444163,-500.0,0.00016999,2]
[352018726,1738883444172,-797.4,0.00016999,2]
[352018728,1738883444182,-1393.59,0.00016999,2]
[352018730,1738883444191,-500.0,0.00016999,2]
[352018732,1738883444200,-500.0,0.00016999,2]
[352018734,1738883444210,-500.0,0.00016999,2]
[352018736,1738883444219,-500.0,0.00016999,2]
[352018738,1738883444229,-500.0,0.00016999,2]
[352018740,1738883444239,-585.33,0.00016999,2]
[352018742,1738883444248,-500.0,0.00016999,2]
[352018744,1738883444258,-500.0,0.00016999,2]
[352018746,1738883444267,-500.0,0.00016999,2]
[352018748,1738883444277,-500.0,0.00016999,2]
[352018750,1738883444287,-500.0,0.00016999,2]
[352018752,1738883444296,-500.0,0.00016999,2]
[352018754,1738883444306,-500.0,0.00016999,2]
[352018756,1738883444315,-885.04,0.00016999,2]
[352018758,1738883444325,-500.0,0.00016999,2]
[352018760,1738883444334,-500.0,0.00016999,2]
[352018762,1738883444344,-500.0,0.00016999,2]
[352018764,1738883444353,-500.0,0.00016999,2]
[352018766,1738883444363,-500.0,0.00016999,2]
[352018768,1738883444373,-829.32,0.00016999,2]
[352018769,1738883444381,-500.0,0.00016999,2]
[352018771,1738883444390,-500.0,0.00016999,2]
[352018773,1738883444400,-500.0,0.00016999,2]
[352018776,1738883444410,-1250.42,0.00016999,2]
[352018778,1738883444419,-500.0,0.00016999,2]
[352018780,1738883444428,-500.0,0.00016999,2]
[352018781,1738883444438,-500.0,0.00016999,2]
[352018783,1738883444447,-500.0,0.00016999,2]
[352018785,1738883444457,-500.0,0.00016999,2]
[352018788,1738883444467,-948.26,0.00016999,2]
[352018790,1738883444477,-500.0,0.00016999,2]
[352018791,1738883444486,-638.27,0.00016999,2]
[352018793,1738883444496,-500.0,0.00016999,2]
[352018796,1738883444505,-500.0,0.00016999,2]
[352018797,1738883444515,-783.8,0.00016999,2]
[352018799,1738883444524,-500.0,0.00016999,2]
[352018802,1738883444535,-500.0,0.00016999,2]
[352018803,1738883444544,-500.0,0.00016999,2]
[352018805,1738883444553,-500.0,0.00016999,2]
[352018807,1738883444563,-500.0,0.00016999,2]
[352018810,1738883444572,-634.39,0.00016999,2]
[352018811,1738883444582,-653.33,0.00016999,2]
[352018813,1738883444591,-586.81431432,0.00016999,2]
[352018816,1738883444603,-500.0,0.00016999,2]
[352018817,1738883444613,-884.18,0.00016999,2]
[352018820,1738883444622,-500.0,0.00016999,2]
[352018822,1738883444631,-667.95,0.00016999,2]
[352018823,1738883444641,-561.15,0.00016999,2]
[352018825,1738883444650,-500.0,0.00016999,2]
[352018827,1738883444660,-633.81,0.00016999,2]
[352018829,1738883444669,-500.0,0.00016999,2]
[352018831,1738883444678,-500.0,0.00016999,2]
[352018833,1738883444688,-500.0,0.00016999,2]
[352018835,1738883444696,-500.0,0.00016999,2]
[352018837,1738883444706,-500.0,0.00016999,2]
[352018839,1738883444715,-500.0,0.00016999,2]
[352018841,1738883444724,-500.0,0.00016999,2]
[352018843,1738883444734,-500.0,0.00016999,2]
[352018845,1738883444743,-500.0,0.00016999,2]
[352018847,1738883444753,-500.0,0.00016999,2]
[352018849,1738883444762,-500.0,0.00016999,2]
[352018851,1738883444772,-616.09,0.00016999,2]
[352018853,1738883444781,-500.0,0.00016999,2]
[352018855,1738883444791,-500.0,0.00016999,2]
[352018857,1738883444800,-500.0,0.00016999,2]
[352018859,1738883444810,-500.0,0.00016999,2]
[352018861,1738883444819,-500.0,0.00016999,2]
[352018863,1738883444828,-500.0,0.00016999,2]
[352018865,1738883444838,-1088.16,0.00016999,2]
[352018867,1738883444848,-1124.57,0.00016999,2]
[352018869,1738883444859,-943.13,0.00016999,2]
[352018871,1738883444869,-500.0,0.00016999,2]
[352018873,1738883444879,-845.6,0.00016999,2]
[352018875,1738883444888,-500.0,0.00016999,2]
[352018878,1738883444899,-500.0,0.00016999,2]
[352018879,1738883444908,-500.0,0.00016999,2]
[352018882,1738883444918,-500.0,0.00016999,2]
[352018883,1738883444927,-500.0,0.00016999,2]
[352018885,1738883444938,-678.19,0.00016999,2]
[352018887,1738883444948,-500.0,0.00016999,2]
[352018890,1738883444959,-300.0,0.00016999,2]
[352018891,1738883444968,-1095.72,0.00016999,2]
[352018893,1738883444977,-500.0,0.00016999,2]
[352018895,1738883444986,-500.0,0.00016999,2]
[352018898,1738883444996,-670.63,0.00016999,2]
[352018899,1738883445005,-500.0,0.00016999,2]
[352018901,1738883445015,-500.0,0.00016999,2]
[352018903,1738883445024,-500.0,0.00016999,2]
[352018906,1738883445035,-500.0,0.00016999,2]
[352018907,1738883445044,-500.0,0.00016999,2]
[352018909,1738883445053,-500.0,0.00016999,2]
[352018912,1738883445063,-500.0,0.00016999,2]
[352018914,1738883445073,-1217.75,0.00016999,2]
[352018915,1738883445082,-751.47,0.00016999,2]
[352018918,1738883445092,-500.0,0.00016999,2]
[352018919,1738883445101,-504.72,0.00016999,2]
[352018921,1738883445111,-500.0,0.00016999,2]
[352018923,1738883445122,-500.0,0.00016999,2]
[352018926,1738883445131,-500.0,0.00016999,2]
[352018927,1738883445141,-500.0,0.00016999,2]
[352018929,1738883445150,-1147.1,0.00016999,2]
[352018931,1738883445160,-500.0,0.00016999,2]
[352018933,1738883445169,-2531.82,0.00016999,2]
[352018935,1738883445178,-500.0,0.00016999,2]
[352018937,1738883445187,-500.0,0.00016999,2]
[352018939,1738883445197,-500.0,0.00016999,2]
[352018941,1738883445206,-500.0,0.00016999,2]
[352018943,1738883445215,-500.0,0.00016999,2]
[352018945,1738883445224,-500.0,0.00016999,2]
[352018947,1738883445233,-2118.02,0.00016999,2]
[352018949,1738883445244,-500.0,0.00016999,2]
[352018951,1738883445254,-500.0,0.00016999,2]
[352018953,1738883445263,-500.0,0.00016999,2]
[352018955,1738883445273,-1019.58,0.00016999,2]
[352018957,1738883445283,-918.24,0.00016999,2]
[352018959,1738883445292,-500.0,0.00016999,2]
[352018961,1738883445302,-380.26494835,0.00016999,2]
[352018963,1738883445311,-500.0,0.00016999,2]
[352018965,1738883445320,-500.0,0.00016999,2]
[352018967,1738883445330,-500.0,0.00016999,2]
[352018969,1738883445339,-500.0,0.00016999,2]
[352018971,1738883445349,-500.0,0.00016999,2]
[352018973,1738883445358,-631.68,0.00016999,2]
[352018975,1738883445367,-500.0,0.00016999,2]
[352018977,1738883445377,-500.0,0.00016999,2]
[352018979,1738883445386,-500.0,0.00016999,2]
[352018981,1738883445395,-500.0,0.00016999,2]
[352018983,1738883445404,-500.0,0.00016999,2]
[352018985,1738883445413,-500.0,0.00016999,2]
[352018987,1738883445422,-885.89,0.00016999,2]
[352018989,1738883445432,-914.52,0.00016999,2]
[352018991,1738883445441,-500.0,0.00016999,2]
[352018993,1738883445450,-832.48,0.00016999,2]
[352018995,1738883445459,-240.53247924,0.00016999,2]
[352018997,1738883445468,-500.0,0.00016999,2]
[352018999,1738883445477,-500.0,0.00016999,2]
[352019000,1738883445486,-574.19,0.00016999,2]
[352019002,1738883445495,-519.18942784,0.00016999,2]
[352019004,1738883445505,-500.0,0.00016999,2]
[352019007,1738883445515,-500.0,0.00016999,2]
[352019008,1738883445524,-500.0,0.00016999,2]
[352019010,1738883445534,-500.0,0.00016999,2]
[352019012,1738883445543,-500.0,0.00016999,2]
[352019014,1738883445553,-500.0,0.00016999,2]
[352019016,1738883445563,-500.0,0.00016999,2]
[352019018,1738883445573,-562.3,0.00016999,2]
[352019021,1738883445583,-500.0,0.00016999,2]
[352019023,1738883445592,-604.06789634,0.00016999,2]
[352019024,1738883445602,-500.0,0.00016999,2]
[352019026,1738883445611,-1373.84,0.00016999,2]
[352019028,1738883445620,-500.0,0.00016999,2]
[352019030,1738883445630,-118.15968432,0.00016999,2]
[352019078,1738883446098,-378.32,0.00016999,2]
[352019080,1738883446108,-381.84031568,0.00016999,2]
[352019082,1738883446117,-500.0,0.00016999,2]
[352019084,1738883446127,-709.45,0.00016999,2]
[352019086,1738883446137,-500.0,0.00016999,2]
[352019088,1738883446148,-500.0,0.00016999,2]
[352019090,1738883446157,-500.0,0.00016999,2]
[352019092,1738883446166,-336.54383484,0.00016999,2]
[352019094,1738883446216,-163.45616516,0.00016999,2]
[352019095,1738883446225,-1021.29720748,0.00016999,2]
[352019096,1738883446236,-41.02279252,0.00016999,2]
[352019097,1738883446245,-500.0,0.00016999,2]
[352019098,1738883446254,-500.0,0.00016999,2]
[352019099,1738883446263,-500.0,0.00016999,2]
[352019100,1738883446273,-500.0,0.00016999,2]
[352019101,1738883446283,-500.0,0.00016999,2]
[352019102,1738883446293,-500.0,0.00016999,2]
[352019103,1738883446304,-500.0,0.00016999,2]
[352019105,1738883446314,-1102.27,0.00016999,2]
[352019107,1738883446324,-500.0,0.00016999,2]
[352019109,1738883446334,-500.0,0.00016999,2]
[352019111,1738883446343,-794.63,0.00016999,2]
[352019113,1738883446352,-649.19,0.00016999,2]
[352019115,1738883446361,-448.81,0.00016999,2]
[352019117,1738883446370,-500.0,0.00016999,2]
[352019119,1738883446380,-500.0,0.00016999,2]
[352019120,1738883446389,-875.64,0.00016999,2]
[352019122,1738883446399,-851.88,0.00016999,2]
[352019125,1738883446409,-500.0,0.00016999,2]
[352019126,1738883446419,-500.0,0.00016999,2]
[352019128,1738883446428,-500.0,0.00016999,2]
[352019130,1738883446437,-836.39,0.00016999,2]
[352019132,1738883446447,-500.0,0.00016999,2]
[352019134,1738883446456,-500.0,0.00016999,2]
[352019136,1738883446465,-500.0,0.00016999,2]
[352019139,1738883446476,-500.0,0.00016999,2]
[352019141,1738883446485,-604.04,0.00016999,2]
[352019143,1738883446494,-500.0,0.00016999,2]
[352019145,1738883446504,-500.0,0.00016999,2]
[352019147,1738883446513,-707.46,0.00016999,2]
[352019149,1738883446522,-500.0,0.00016999,2]
[352019151,1738883446531,-500.0,0.00016999,2]
[352019153,1738883446540,-1572.1,0.00016999,2]
[352019155,1738883446550,-768.15,0.00016999,2]
[352019157,1738883446560,-639.74,0.00016999,2]
[352019159,1738883446569,-500.0,0.00016999,2]
[352019161,1738883446579,-614.27,0.00016999,2]
[352019163,1738883446587,-500.0,0.00016999,2]
[352019165,1738883446597,-523.31,0.00016999,2]
[352019167,1738883446606,-500.0,0.00016999,2]
[352019169,1738883446615,-500.0,0.00016999,2]
[352019171,1738883446624,-803.73,0.00016999,2]
[352019173,1738883446634,-500.0,0.00016999,2]
[352019175,1738883446643,-500.0,0.00016999,2]
[352019177,1738883446653,-500.0,0.00016999,2]
[352019179,1738883446662,-500.0,0.00016999,2]
[352019181,1738883446671,-795.64,0.00016999,2]
[352019183,1738883446680,-500.0,0.00016999,2]
[352019185,1738883446690,-500.0,0.00016999,2]
[352019187,1738883446700,-500.0,0.00016999,2]
[352019189,1738883446710,-500.0,0.00016999,2]
[352019191,1738883446720,-408.54,0.00016999,2]
[352019193,1738883446729,-500.0,0.00016999,2]
[352019195,1738883446739,-460.1812114,0.00016999,2]
[352019197,1738883446748,-500.0,0.00016999,2]
[352019199,1738883446757,-500.0,0.00016999,2]
[352019201,1738883446766,-573.8,0.00016999,2]
[352019203,1738883446775,-500.0,0.00016999,2]
[352019205,1738883446784,-616.66,0.00016999,2]
[352019207,1738883446793,-1147.2,0.00016999,2]
[352019209,1738883446802,-769.56,0.00016999,2]
[352019211,1738883446811,-500.0,0.00016999,2]
[352019213,1738883446820,-1422.9,0.00016999,2]
[352019215,1738883446830,-500.0,0.00016999,2]
[352019217,1738883446839,-473.2,0.00016999,2]
[352019219,1738883446849,-500.0,0.00016999,2]
[352019221,1738883446859,-2489.55,0.00016999,2]
[352019223,1738883446870,-500.0,0.00016999,2]
[352019225,1738883446882,-500.0,0.00016999,2]
[352019227,1738883446894,-500.0,0.00016999,2]
[352019229,1738883446907,-500.0,0.00016999,2]
[352019231,1738883446916,-778.04,0.00016999,2]
[352019233,1738883446926,-425.82,0.00016999,2]
[352019235,1738883446935,-500.0,0.00016999,2]
[352019237,1738883446945,-851.7,0.00016999,2]
[352019239,1738883446955,-500.0,0.00016999,2]
[352019241,1738883446964,-554.73,0.00016999,2]
[352019243,1738883446974,-500.0,0.00016999,2]
[352019245,1738883446983,-500.0,0.00016999,2]
[352019246,1738883446991,-500.0,0.00016999,2]
[352019248,1738883447001,-638.4,0.00016999,2]
[352019250,1738883447011,-500.0,0.00016999,2]
[352019252,1738883447020,-1894.44106091,0.00016999,2]
[352019254,1738883447030,-50416.92819698,0.00016999,2]
[352019257,1738883447048,-350.0,0.00016999,2]
[352019260,1738883447059,-150.0,0.00016999,2]
[352019261,1738883447068,-53795.0,0.00016999,2]
[352019264,1738883447081,-2341.5,0.00016999,2]
[352019560,1738883534123,33022.0803,8.973e-05,2]
[352019561,1738883781588,-154.24,0.00010137,2]
[352019595,1738884476619,22496.85218597,0.0001,2]
[352019596,1738884477209,-27108.72862012,0.0001,2]
[352019597,1738884477804,-27108.72862012,0.0001,2]
[352019599,1738884492068,-300.0,9.999e-05,2]
[352019603,1738884505238,-300.0,9.8e-05,3]
[352019604,1738884507369,-700.0,9.9e-05,3]
[352019605,1738884512482,-1100.0,0.0001,3]
[352019608,1738884602089,-300.0,9.999e-05,2]
[352019609,1738884603939,-150.0,9.999e-05,2]
[352019610,1738884612086,-67171.0,0.0001,2]
[352019620,1738884632238,-17417.96625061,0.0001,2]
[352019621,1738884632250,-17170.5,0.0001,2]
[352019622,1738884632262,-1914.75277448,0.0001,2]
[352019624,1738884632274,-116295.590155,0.0001,2]
[352019626,1738884632389,-260.0,0.0001,2]
[352019627,1738884632401,-4710.59138291,0.0001,2]
[352019628,1738884632413,-10568.7378646,0.0001,2]
[352019629,1738884632425,-351419.65647949,0.0001,2]
[352019630,1738884632436,-1338473.66305909,0.0001,2]
[352019631,1738884632446,-485.50082644,0.000108,2]
[352019632,1738884632455,-307.0811705,0.000109,2]
[352019633,1738884632465,-28165.94563472,0.00011,2]
[352019634,1738884632474,-187.63,0.00011,2]
[352019635,1738884632483,-187.63,0.00011,2]
[352019636,1738884632492,-187.63,0.00011,2]
[352019637,1738884632501,-187.63,0.00011,2]
[352019638,1738884632511,-187.63,0.00011,2]
[352019639,1738884632520,-187.63,0.00011,2]